bitfinex-derivatives/quotes_BTCF0:USTF0_20210108
["timestamp","ask_amount","ask_price","bid_price","bid_amount"]
[1610143191228,0.01792119,39968.0,39967.0,0.56302608]
[1610143191727,0.01792135,39972.0,39967.0,0.56302608]
[1610143192130,0.11314,39973.0,39967.0,0.13632608]
[1610143192329,0.53694003,39990.0,39970.0,3.6195]
[1610143192330,0.0179208,39971.0,39970.0,3.6195]
[1610143192530,0.01792073,39972.0,39970.0,3.6195]
[1610143192830,0.09117,39983.0,39971.0,0.13632608]
[1610143193030,0.09117,39983.0,39971.0,3.42252608]
[1610143193430,0.0179197,39982.0,39971.0,3.42252608]
[1610143194130,0.09117,39983.0,39971.0,3.42252608]
[1610143194630,0.09117,39983.0,39982.0,0.13632608]
[1610143194831,0.09117,39983.0,39982.0,0.56902608]
[1610143196334,0.03255957,40009.0,39982.0,0.56902608]
[1610143196734,0.13632608,40001.0,39986.0,0.13632608]
[1610143196935,0.21723608,40001.0,39986.0,0.13632608]
[1610143197233,0.08091,40001.0,40000.0,4.1605]
[1610143197635,0.09882601,40001.0,40000.0,4.1605]
[1610143197836,0.09882563,40001.0,40000.0,4.1605]
[1610143198636,0.09882563,40001.0,40000.0,4.29682608]
[1610143199440,0.01791563,40001.0,40000.0,4.29682608]
[1610143199939,0.0179134,40006.0,40000.0,4.29682608]
[1610143200139,0.13632608,40007.0,40000.0,4.29682608]
[1610143200539,0.00030593,40006.0,40000.0,4.29682608]
[1610143200739,0.00030593,40006.0,40005.0,0.13632608]
[1610143200938,0.00030593,40006.0,40000.0,4.1605]
[1610143202339,0.00030588,40005.0,40000.0,4.1605]
[1610143202541,0.01791201,40008.0,40000.0,4.1605]
[1610143202740,0.13632608,40004.0,40001.0,0.13632608]
[1610143202941,0.13663193,40004.0,40001.0,0.13632608]
[1610143203142,0.01790964,40003.0,40001.0,0.13632608]
[1610143203441,0.01790964,40003.0,39987.0,3.84021]
[1610143203842,0.01790964,40003.0,39987.0,3.7313]
[1610143204746,0.13632608,39994.0,39981.0,0.13632608]
[1610143204945,0.22974608,39994.0,39978.0,0.09993]
[1610143205246,0.01790497,39993.0,39905.0,0.5518]
[1610143205649,3.91100497,39993.0,39932.0,3.3924]
[1610143205847,3.91100497,39993.0,39932.0,3.50645]
[1610143206048,0.07908495,39992.0,39932.0,0.11405]
[1610143206549,3.145,39984.0,39932.0,0.11405]
[1610143206745,3.145,39984.0,39944.0,0.13632608]
[1610143206946,3.22903,39984.0,39944.0,0.13632608]
[1610143207249,0.07910568,39983.0,39932.0,0.11405]
[1610143207846,0.07910568,39983.0,39920.0,3.4365]
[1610143208045,0.295,39982.0,39920.0,3.4365]
[1610143208446,0.01791592,39981.0,39920.0,3.4365]
[1610143208846,0.13632608,39938.0,39937.0,0.13632608]
[1610143209446,0.13632608,39938.0,39905.0,0.3915]
[1610143209648,0.13632608,39938.0,39915.0,3.3679]
[1610143209950,0.13632608,39938.0,39915.0,3.45867]
[1610143210748,0.13632608,39929.0,39928.0,0.13632608]
[1610143211148,0.13632608,39929.0,39915.0,3.45867]
[1610143211346,0.13632608,39929.0,39915.0,0.09077]
[1610143211546,0.13632608,39929.0,39905.0,0.1162]
[1610143211547,0.23053608,39929.0,39905.0,0.1162]
[1610143212047,0.23053608,39929.0,39890.0,3.77]
[1610143212850,0.09421,39929.0,39910.0,0.13632608]
[1610143213150,0.09421,39929.0,39890.0,3.77]
[1610143214650,0.00030626,39928.0,39890.0,3.77]
[1610143214850,0.13632608,39895.0,39890.0,3.77]
[1610143215052,0.13632608,39895.0,39889.0,0.13632608]
[1610143216850,0.13632608,39895.0,39874.0,4.0945]
[1610143216851,0.13632608,39899.0,39894.0,0.13632608]
[1610143218751,0.13632608,39899.0,39898.0,0.13632608]
[1610143219151,0.13632608,39899.0,39874.0,4.0945]
[1610143219451,0.13632608,39899.0,39873.0,0.11633]
[1610143220555,0.13632608,39899.0,39873.0,2.92303]
[1610143220751,0.13632608,39894.0,39886.0,0.13632608]
[1610143221653,0.44948558,39928.0,39886.0,0.13632608]
[1610143221853,0.44990195,39927.0,39886.0,0.13632608]
[1610143222854,0.13632608,39901.0,39895.0,0.13632608]
[1610143223053,0.22349608,39901.0,39895.0,0.13632608]
[1610143224154,0.22349608,39901.0,39880.0,3.451]
[1610143224755,0.22349608,39901.0,39897.0,0.13632608]
[1610143225655,0.22349608,39901.0,39880.0,3.451]
[1610143226757,0.13632608,39892.0,39880.0,3.58732608]
[1610143227265,0.25656608,39892.0,39880.0,3.58732608]
[1610143228763,0.25656608,39892.0,39887.0,0.13632608]
[1610143231665,0.12024,39892.0,39887.0,0.13632608]
[1610143232266,0.08717,39901.0,39887.0,0.13632608]
[1610143232467,0.2813,39919.0,39887.0,0.13632608]
[1610143232666,0.37766849,39901.0,39887.0,0.13632608]
[1610143232866,0.51399457,39901.0,39891.0,0.13632608]
[1610143234471,0.37766849,39901.0,39891.0,0.13632608]
[1610143234871,0.51399457,39901.0,39891.0,0.13632608]
[1610143236876,0.13632608,39893.0,39891.0,0.13632608]
[1610143237275,0.37766849,39901.0,39891.0,0.13632608]
[1610143238877,0.37766849,39901.0,39900.0,0.13632608]
[1610143240484,0.37766849,39901.0,39900.0,3.98052608]
[1610143242179,0.37766849,39901.0,39900.0,5.48081039]
[1610143243685,0.07175985,39901.0,39900.0,5.48081039]
[1610143244081,3.1724,39954.0,39900.0,5.51142002]
[1610143244283,0.2975,39974.0,39900.0,1.63661039]
[1610143244582,0.2975,39974.0,39917.0,3.56174]
[1610143244884,0.13632608,39965.0,39963.0,0.13632608]
[1610143245084,0.21940608,39965.0,39963.0,0.13632608]
[1610143249187,0.21940608,39965.0,39949.0,3.372]
[1610143250987,0.21940608,39965.0,39960.0,0.13632608]
[1610143254195,0.21940608,39965.0,39947.0,0.08408]
[1610143255096,0.13632608,39961.0,39947.0,0.08408]
[1610143256199,0.13632608,39961.0,39946.0,0.13632608]
[1610143257000,0.13632608,39961.0,39951.0,0.13632608]
[1610143258902,0.08308,39965.0,39951.0,0.13632608]
[1610143258903,0.13632608,39953.0,39951.0,0.13632608]
[1610143264208,0.13632608,39953.0,39952.0,4.1664]
[1610143264909,0.13632608,39957.0,39952.0,4.1664]
[1610143265208,0.08308,39965.0,39951.0,0.13632608]
[1610143265407,0.45033193,39972.0,39951.0,0.13632608]
[1610143265609,0.45056664,39971.0,39951.0,0.13632608]
[1610143265907,0.53879664,39971.0,39951.0,0.13632608]
[1610143266108,0.45056614,39970.0,39951.0,0.13632608]
[1610143266509,0.08823,39971.0,39951.0,0.13632608]
[1610143266510,0.45064586,39969.0,39951.0,0.13632608]
[1610143267009,0.13632608,39956.0,39951.0,0.13632608]
[1610143267210,0.25033608,39956.0,39951.0,0.13632608]
[1610143270113,0.25033608,39956.0,39944.0,2.918]
[1610143270614,0.25033608,39956.0,39945.0,0.00028255]
[1610143271015,0.13632608,39952.0,39945.0,0.00028255]
[1610143271415,0.13632608,39952.0,39944.0,2.918]
[1610143275021,0.13632608,39946.0,39944.0,2.918]
[1610143275221,0.25539608,39946.0,39944.0,2.918]
[1610143280927,0.25539608,39946.0,39939.0,0.13632608]
[1610143283231,0.13632608,39940.0,39939.0,0.13632608]
[1610143284132,0.13632608,39940.0,39939.0,0.13660867]
[1610143284733,0.13632608,39940.0,39939.0,0.66040867]
[1610143299352,0.30471782,39940.0,39939.0,0.66040867]
[1610143302260,0.30471782,39940.0,39939.0,0.13660867]
[1610143304362,0.30471782,39940.0,39939.0,0.16717218]
[1610143307671,0.30471782,39940.0,39939.0,0.71847218]
[1610143312676,0.7623301,39940.0,39939.0,0.71847218]
[1610143313077,0.30471782,39940.0,39939.0,0.71847218]
[1610143315080,0.30471782,39940.0,39939.0,0.68790867]
[1610143315280,0.76248647,39940.0,39939.0,0.55158259]
[1610143317986,0.76248647,39940.0,39939.0,0.00028259]
[1610143318486,0.76248647,39940.0,39926.0,0.0309027]
[1610143318986,3.5092,39933.0,39926.0,0.00028598]
[1610143319185,3.5092,39933.0,39927.0,0.00028602]
[1610143319388,0.13632608,39928.0,39918.0,0.03090806]
[1610143319689,0.4716,39925.0,39918.0,0.00028602]
[1610143319885,0.4716,39925.0,39919.0,0.00028608]
[1610143320187,0.45810254,39924.0,39918.0,0.00028611]
[1610143320386,0.45810254,39924.0,39908.0,0.03091597]
[1610143320587,0.45811203,39923.0,39908.0,0.03091597]
[1610143321488,0.13632608,39909.0,39908.0,0.00028611]
[1610143321686,0.13632608,39909.0,39899.0,0.13632608]
[1610143321891,0.13632608,39909.0,39900.0,0.03063518]
[1610143322088,0.13632608,39909.0,39900.0,0.03092135]
[1610143323490,0.13632608,39903.0,39900.0,0.03092135]
[1610143324590,0.25580608,39903.0,39900.0,0.03092135]
[1610143326791,0.25580608,39903.0,39900.0,0.03092187]
[1610143327590,0.25580608,39903.0,39900.0,0.00028669]
[1610143327791,0.25580608,39903.0,39901.0,0.00028671]
[1610143327991,0.25580608,39903.0,39900.0,0.00028671]
[1610143329294,0.25580608,39903.0,39897.0,0.00028674]
[1610143331196,0.25580608,39903.0,39895.0,0.00028674]
[1610143331398,0.25580608,39903.0,39898.0,0.00028674]
[1610143331697,3.9701,39913.0,39895.0,0.00028676]
[1610143331997,3.9701,39913.0,39899.0,0.00028676]
[1610143332197,3.9701,39913.0,39896.0,0.00028676]
[1610143332499,3.9701,39913.0,39884.0,0.00028676]
[1610143332797,0.00031245,39903.0,39897.0,0.00028676]
[1610143333097,0.00031245,39903.0,39885.0,0.00028676]
[1610143333297,0.4097,39902.0,39843.0,0.1569]
[1610143333498,0.13632608,39876.0,39872.0,3.99492608]
[1610143333998,0.13632608,39876.0,39875.0,0.0002868]
[1610143334200,0.13632608,39876.0,39873.0,0.0002868]
[1610143334398,0.13632608,39876.0,39875.0,0.00028683]
[1610143334599,0.13632608,39876.0,39874.0,0.00028683]
[1610143335001,0.13632608,39876.0,39875.0,0.00028686]
[1610143335399,0.13632608,39876.0,39865.0,0.00028688]
[1610143335800,0.13632608,39876.0,39875.0,0.00028688]
[1610143336001,0.13632608,39876.0,39866.0,0.00028688]
[1610143336201,0.13632608,39876.0,39875.0,0.0002869]
[1610143336503,0.13632608,39876.0,39867.0,0.0002869]
[1610143336700,0.13632608,39876.0,39875.0,0.0002869]
[1610143337201,0.13632608,39876.0,39862.0,2.8608]
[1610143337603,0.13632608,39863.0,39862.0,2.8608]
[1610143338001,0.13632608,39863.0,39862.0,2.86108691]
[1610143338608,0.13632608,39863.0,39862.0,2.86108692]
[1610143339105,0.10888,39872.0,39862.0,2.86108692]
[1610143339604,0.13632608,39866.0,39863.0,0.00028692]
[1610143340208,0.13632608,39866.0,39862.0,2.8608]
[1610143343611,0.13632608,39866.0,39857.0,0.13632608]
[1610143345512,0.13632608,39858.0,39857.0,0.13632608]
[1610143345913,0.13632608,39858.0,39856.0,0.10321]
[1610143346314,0.13632608,39858.0,39848.0,2.9872]
[1610143347415,0.13632608,39858.0,39849.0,0.00028699]
[1610143347616,0.10888,39872.0,39849.0,0.00028699]
[1610143347617,0.13632608,39850.0,39849.0,0.00028699]
[1610143348016,0.13632608,39850.0,39847.0,0.00028699]
[1610143349014,0.13632608,39850.0,39842.0,0.08367]
[1610143349015,0.13632608,39850.0,39843.0,0.00028701]
[1610143349216,0.13632608,39850.0,39848.0,0.00028701]
[1610143349415,0.13632608,39850.0,39842.0,0.08367]
[1610143349617,0.13632608,39843.0,39842.0,0.08367]
[1610143351016,0.13632608,39843.0,39839.0,0.13632608]
[1610143351217,0.13632608,39843.0,39835.0,3.083]
[1610143351617,0.13632608,39837.0,39835.0,3.083]
[1610143352318,0.23796608,39837.0,39832.0,0.13632608]
[1610143353521,0.13632608,39833.0,39832.0,0.13632608]
[1610143359930,0.11854,39845.0,39832.0,0.13632608]
[1610143360131,0.10284,39856.0,39832.0,0.13632608]
[1610143360334,0.287,39880.0,39841.0,3.034]
[1610143361030,0.287,39880.0,39836.0,0.10347]
[1610143361031,0.00030675,39879.0,39836.0,0.10347]
[1610143361231,0.11901,39879.0,39850.0,3.4145]
[1610143361430,0.11901,39879.0,39845.0,0.12256]
[1610143361642,0.11901,39879.0,39853.0,0.13632608]
[1610143362032,0.11901,39879.0,39859.0,3.1914]
[1610143363634,0.11901,39879.0,39864.0,0.13632608]
[1610143365537,0.13632608,39873.0,39864.0,0.13632608]
[1610143365940,0.11901,39879.0,39864.0,0.13632608]
[1610143366339,0.287,39880.0,39864.0,0.13632608]
[1610143367641,0.13632608,39873.0,39868.0,0.13632608]
[1610143367842,0.13632608,39873.0,39871.0,0.4197]
[1610143368242,0.287,39880.0,39868.0,0.13632608]
[1610143368644,0.287,39880.0,39875.0,3.6985]
[1610143369043,0.12417,39890.0,39875.0,3.6985]
[1610143369544,0.00031245,39903.0,39875.0,3.6985]
[1610143369545,0.13632608,39888.0,39887.0,0.13632608]
[1610143369743,0.00031245,39903.0,39887.0,0.13632608]
[1610143369944,0.00031245,39903.0,39892.0,3.1462]
[1610143371646,0.00031245,39903.0,39894.0,0.13632608]
[1610143371847,0.2718,39920.0,39894.0,0.13632608]
[1610143372246,0.00030647,39919.0,39894.0,0.13632608]
[1610143372748,0.09087647,39919.0,39906.0,4.1986]
[1610143373148,0.00030647,39918.0,39906.0,4.1986]
[1610143373550,0.13632608,39907.0,39906.0,4.1986]
[1610143374149,0.09057,39919.0,39906.0,4.1986]
[1610143375552,0.01518122,39935.0,39914.0,0.13632608]
[1610143375953,0.01518756,39938.0,39928.0,4.0429]
[1610143376363,0.01518674,39941.0,39928.0,4.0429]
[1610143376771,0.01519084,39944.0,39928.0,3.6746752]
[1610143376963,0.01519084,39944.0,39922.0,0.11947]
[1610143377155,0.01519084,39944.0,39943.0,3.8156]
[1610143377356,0.46652045,39946.0,39943.0,3.8156]
[1610143377558,0.13632608,39944.0,39943.0,3.8156]
[1610143379058,0.13632608,39944.0,39938.0,0.13632608]
[1610143379364,0.13632608,39944.0,39922.0,0.11947]
[1610143379365,0.13632608,39944.0,39935.0,3.7869]
[1610143379562,0.13632608,39936.0,39935.0,3.7869]
[1610143381559,0.13632608,39936.0,39922.0,0.11947]
[1610143381761,0.13632608,39936.0,39918.0,3.7963]
[1610143381960,0.44787518,39936.0,39918.0,3.7963]
[1610143383662,0.13632608,39919.0,39918.0,3.7963]
[1610143385466,0.13632608,39919.0,39844.0,2.13224884]
[1610143385666,0.13632608,39910.0,39907.0,0.13632608]
[1610143386066,0.13632608,39910.0,39903.0,2.8473]
[1610143387867,0.13632608,39904.0,39903.0,2.8473]
[1610143388070,0.13632608,39904.0,39890.0,0.13632608]
[1610143389171,0.13632608,39904.0,39889.0,3.1158]
[1610143389670,0.13632608,39890.0,39889.0,3.1158]
[1610143389871,0.13632608,39890.0,39858.0,0.2902]
[1610143390171,0.13632608,39890.0,39879.0,2.9111]
[1610143391675,0.13632608,39886.0,39880.0,0.13632608]
[1610143393673,0.13632608,39882.0,39880.0,0.13632608]
[1610143394677,0.08263,39895.0,39880.0,0.13632608]
[1610143395675,0.08263,39895.0,39894.0,0.13632608]
[1610143396481,0.08263,39895.0,39894.0,3.74872608]
[1610143396978,0.2756,39915.0,39894.0,3.74872608]
[1610143397879,0.13632608,39906.0,39894.0,3.74872608]
[1610143398077,0.13632608,39906.0,39894.0,0.13632608]
[1610143398476,0.13632608,39906.0,39898.0,3.4338]
[1610143399076,0.13632608,39906.0,39894.0,0.13632608]
[1610143399276,0.13632608,39906.0,39886.0,0.12254]
[1610143399480,0.13632608,39906.0,39886.0,3.84004]
[1610143399780,0.13632608,39887.0,39886.0,3.84004]
[1610143400177,0.13632608,39887.0,39886.0,0.12254]
[1610143400580,0.13632608,39887.0,39878.0,4.19344608]
[1610143401676,0.13632608,39879.0,39878.0,4.19344608]
[1610143401877,0.13632608,39879.0,39878.0,0.22104608]
[1610143402079,0.13632608,39879.0,39878.0,3.17264608]
[1610143407581,0.13632608,39879.0,39878.0,0.22104608]
[1610143407782,0.13632608,39879.0,39878.0,4.37524608]
[1610143408383,0.08001,39898.0,39878.0,4.37524608]
[1610143408582,0.08001,39898.0,39878.0,0.22133261]
[1610143408783,0.10190505,39911.0,39887.0,4.1577]
[1610143409083,0.10190505,39911.0,39887.0,0.12309]
[1610143409284,0.46692109,39914.0,39901.0,3.7267]
[1610143409687,0.01520035,39926.0,39901.0,3.82023]
[1610143409885,0.01520035,39926.0,39913.0,0.13632608]
[1610143410086,0.13632608,39934.0,39913.0,0.13632608]
[1610143410285,0.13632608,39934.0,39919.0,3.9463]
[1610143411096,0.13632608,39934.0,39913.0,0.13632608]
[1610143411386,0.24824608,39934.0,39920.0,3.7197]
[1610143411585,0.24824608,39934.0,39913.0,0.13632608]
[1610143411892,0.24824608,39934.0,39933.0,0.13632608]
[1610143412888,0.24824608,39934.0,39920.0,3.9477]
[1610143413105,0.24824608,39934.0,39909.0,0.10662]
[1610143413588,0.24824608,39934.0,39910.0,3.6422]
[1610143413889,0.11192,39934.0,39928.0,0.13632608]
[1610143415505,0.12713717,39934.0,39928.0,0.13632608]
[1610143415791,0.13632608,39929.0,39928.0,0.13632608]
[1610143417394,0.15155059,39929.0,39928.0,0.13632608]
[1610143418893,0.58928083,39929.0,39928.0,0.13632608]
[1610143419194,0.604525,39929.0,39928.0,0.13632608]
[1610143419594,0.58928083,39929.0,39928.0,0.13632608]
[1610143421297,1.50098679,39929.0,39928.0,0.13632608]
[1610143421497,1.93098679,39929.0,39928.0,0.13632608]
[1610143422302,1.93098679,39929.0,39917.0,3.8857]
[1610143422700,2.59688685,39929.0,39917.0,3.8857]
[1610143422901,2.16688685,39929.0,39848.0,0.1569]
[1610143423201,0.13444234,39920.0,39889.0,4.1898]
[1610143423600,0.13444234,39920.0,39890.0,0.00028645]
[1610143423804,0.0152896,39918.0,39890.0,0.00028645]
[1610143424004,0.13632608,39898.0,39897.0,0.13632608]
[1610143424405,0.13632608,39898.0,39897.0,0.13661257]
[1610143425106,4.31952608,39898.0,39897.0,0.13661257]
[1610143425305,4.31952608,39898.0,39897.0,0.13632608]
[1610143425603,4.31952608,39898.0,39877.0,3.6422]
[1610143426004,4.1832,39898.0,39892.0,0.13632608]
[1610143426506,4.1832,39898.0,39893.0,0.00028652]
[1610143427908,4.31952608,39898.0,39893.0,0.00028652]
[1610143428108,4.31952608,39898.0,39892.0,0.13632608]
[1610143428407,4.43664608,39898.0,39892.0,0.13632608]
[1610143428907,4.43664608,39898.0,39897.0,0.03]
[1610143431409,0.25344608,39898.0,39897.0,0.03]
[1610143434818,0.72144608,39898.0,39897.0,0.03]
[1610143435718,0.73675998,39898.0,39897.0,0.03]
[1610143436118,1.1764815,39898.0,39897.0,0.03]
[1610143436919,2.09013112,39898.0,39897.0,0.03]
[1610143438719,2.09013112,39898.0,39897.0,0.043]
[1610143439519,2.75767624,39898.0,39897.0,0.043]
[1610143446224,3.06922534,39898.0,39897.0,0.043]
[1610143449925,2.40168022,39898.0,39897.0,0.043]
[1610143450427,3.06972621,39898.0,39897.0,0.043]
[1610143451125,3.50616605,39898.0,39897.0,0.043]
[1610143452729,4.2654976,39898.0,39897.0,0.043]
[1610143453330,3.50616605,39898.0,39897.0,0.043]
[1610143454429,4.26525365,39898.0,39897.0,0.043]
[1610143455728,4.26525365,39898.0,39897.0,0.04146785]
[1610143456229,4.26556032,39898.0,39897.0,0.04146785]
[1610143462238,5.11482595,39898.0,39897.0,0.04146785]
[1610143462939,4.26556032,39898.0,39897.0,0.04146785]
[1610143464844,3.79756032,39898.0,39897.0,0.04146785]
[1610143465050,3.79756032,39898.0,39897.0,3.97946785]
[1610143465051,3.66123424,39898.0,39897.0,3.97946785]
[1610143465548,3.66092757,39898.0,39897.0,3.97975404]
[1610143465750,1.32014436,39898.0,39897.0,3.97975404]
[1610143465946,1.32014436,39898.0,39897.0,5.60161404]
[1610143466146,1.32014436,39898.0,39897.0,5.63230168]
[1610143466349,0.86510894,39898.0,39897.0,5.76862776]
[1610143466748,0.86510894,39898.0,39897.0,5.73794012]
[1610143468348,0.86510894,39898.0,39897.0,5.76859456]
[1610143468750,0.74798894,39898.0,39897.0,5.76859456]
[1610143469349,0.74798894,39898.0,39897.0,5.73794012]
[1610143470854,0.45369428,39942.0,39897.0,5.73794012]
[1610143471053,0.45369428,39942.0,39897.0,5.76856684]
[1610143471257,0.45365476,39947.0,39897.0,5.76856684]
[1610143471454,0.45365476,39947.0,39898.0,0.03091091]
[1610143471656,0.45348502,39949.0,39898.0,0.03091091]
[1610143471958,0.4534116,39951.0,39898.0,0.03091091]
[1610143472358,0.53785734,39953.0,39950.0,0.13632608]
[1610143472758,0.08466,39953.0,39950.0,0.13632608]
[1610143474358,0.45286105,39960.0,39950.0,0.13632608]
[1610143474659,0.45257225,39961.0,39950.0,1.63632608]
[1610143474858,0.13632608,39968.0,39950.0,1.63632608]
[1610143474859,0.45256058,39962.0,39960.0,4.0382]
[1610143475262,0.45255957,39964.0,39960.0,4.0382]
[1610143475661,0.45222553,39965.0,39960.0,4.0382]
[1610143476363,0.45222553,39965.0,39964.0,0.13632608]
[1610143476763,0.45188167,39968.0,39964.0,0.13632608]
[1610143477163,0.45188167,39968.0,39967.0,4.445]
[1610143477566,0.93291394,39982.0,39967.0,4.445]
[1610143477766,0.271,39982.0,39967.0,4.445]
[1610143478365,0.271,39982.0,39981.0,0.13632608]
[1610143478564,0.271,39982.0,39981.0,0.22123608]
[1610143480367,0.271,39982.0,39981.0,1.72123608]
[1610143481667,0.271,39982.0,39981.0,0.22123608]
[1610143482869,0.271,39982.0,39981.0,1.72123608]
[1610143483672,0.271,39982.0,39981.0,0.22123608]
[1610143488582,0.03255957,40009.0,39981.0,0.22123608]
[1610143488778,0.03255957,40009.0,39982.0,1.5]
[1610143489581,0.03255957,40009.0,39981.0,0.22123608]
[1610143489877,0.03255957,40009.0,39984.0,3.6711]
[1610143490477,0.03255957,40009.0,39994.0,0.13632608]
[1610143490983,0.03255957,40009.0,40003.0,0.08164]
[1610143492679,0.03255957,40009.0,40008.0,0.13632608]
[1610143494382,0.03255957,40009.0,40008.0,1.63632608]
[1610143495385,0.03255957,40009.0,40008.0,0.13632608]
[1610143508506,0.03255957,40009.0,40008.0,3.42702608]
[1610143511608,0.03255957,40009.0,40008.0,0.13632608]
[1610143512210,0.03255957,40009.0,40008.0,3.65982608]
[1610143512710,0.03255957,40009.0,40008.0,0.13632608]
[1610143520923,2.4601342,40079.0,40008.0,0.13632608]
[1610143521123,0.64729842,40105.0,40008.0,0.13632608]
[1610143521322,0.00030544,40078.0,40035.0,3.64]
[1610143521524,0.13472641,40078.0,40035.0,3.64]
[1610143521723,0.11938,40078.0,40035.0,3.64]
[1610143521925,0.01534596,40077.0,40035.0,3.64]
[1610143522724,0.01534596,40077.0,40076.0,0.13632608]
[1610143522925,0.11938,40078.0,40076.0,0.13632608]
[1610143523423,0.11938,40078.0,40077.0,3.4658]
[1610143524226,0.11938,40078.0,40076.0,0.13632608]
[1610143525131,0.13632608,40099.0,40076.0,0.13632608]
[1610143525327,0.13632608,40099.0,40076.0,0.25501608]
[1610143525728,0.01534075,40098.0,40076.0,0.25501608]
[1610143525929,0.13008075,40098.0,40076.0,0.25501608]
[1610143526128,0.13008075,40098.0,40076.0,0.11869]
[1610143526429,0.01534139,40097.0,40071.0,3.7676]
[1610143526628,0.25457608,40083.0,40071.0,3.7676]
[1610143527231,0.00030534,40082.0,40071.0,3.7676]
[1610143528331,0.25457608,40083.0,40071.0,3.7676]
[1610143528731,0.25457608,40083.0,40074.0,0.13632608]
[1610143529835,0.25457608,40083.0,40071.0,3.7676]
[1610143530735,0.25457608,40083.0,40082.0,0.13632608]
[1610143531035,0.25457608,40083.0,40071.0,3.7676]
[1610143533639,0.25457608,40083.0,40070.0,0.13632608]
[1610143534740,0.13632608,40076.0,40070.0,0.13632608]
[1610143535342,0.11825,40083.0,40070.0,0.13632608]
[1610143535540,0.54937922,40095.0,40070.0,0.13632608]
[1610143535541,0.5370708,40089.0,40070.0,0.13632608]
[1610143535941,0.90322057,40095.0,40070.0,0.13632608]
[1610143536444,3.80126744,40096.0,40070.0,0.13632608]
[1610143536641,0.13632608,40090.0,40083.0,0.13632608]
[1610143537245,0.6521522,40098.0,40083.0,0.13632608]
[1610143537743,0.9039787,40097.0,40083.0,0.13632608]
[1610143538043,0.11474,40098.0,40083.0,0.13632608]
[1610143538343,0.53778832,40099.0,40083.0,0.13632608]
[1610143538542,0.53795938,40098.0,40083.0,0.13632608]
[1610143538844,0.10491,40098.0,40069.0,3.6225]
[1610143539043,0.10491,40098.0,40069.0,3.73975]
[1610143540644,0.10491,40098.0,40096.0,0.13632608]
[1610143541244,0.10491,40098.0,40096.0,0.13480086]
[1610143541445,0.10491,40098.0,40080.0,0.09217]
[1610143542850,0.10491,40098.0,40088.0,0.13632608]
[1610143544050,0.03211759,40101.0,40088.0,0.13632608]
[1610143544752,0.13632608,40099.0,40098.0,0.13632608]
[1610143545550,0.03211759,40101.0,40098.0,0.13632608]
[1610143546856,0.03211759,40101.0,40098.0,0.23826608]
[1610143548455,0.03211759,40101.0,40098.0,0.10194]
[1610143548656,0.13632608,40099.0,40098.0,0.10194]
[1610143549256,0.13632608,40099.0,40089.0,0.25151608]
[1610143549656,0.03211759,40101.0,40091.0,3.3629]
[1610143550857,0.03211759,40101.0,40100.0,0.13632608]
[1610143551860,0.03211759,40101.0,40100.0,0.54952608]
[1610143553966,0.03211759,40101.0,40100.0,0.4132]
[1610143554965,0.04614457,40099.0,40098.0,0.09699]
[1610143556166,0.04614457,40099.0,40097.0,0.13632608]
[1610143559074,0.03614457,40099.0,40097.0,0.13632608]
[1610143568380,0.03614457,40099.0,40098.0,3.85830208]
[1610143568580,0.03614457,40099.0,40098.0,3.97727208]
[1610143574084,0.03614457,40099.0,40098.0,0.11927208]
[1610143576890,0.03614457,40099.0,40098.0,0.25559816]
[1610143579089,0.03614457,40099.0,40098.0,0.28609923]
[1610143584698,0.03614457,40099.0,40098.0,0.80749923]
[1610143585499,0.03614457,40099.0,40098.0,0.86849791]
[1610143585706,0.03614457,40099.0,40098.0,0.80749923]
[1610143590405,0.01414457,40099.0,40098.0,0.80749923]
[1610143595708,0.01414457,40099.0,40098.0,0.86850068]
[1610143597815,0.01414457,40099.0,40098.0,0.34710068]
[1610143598312,0.01414457,40099.0,40098.0,0.28609923]
[1610143599115,0.01414457,40099.0,40098.0,0.16712923]
[1610143600116,0.01414457,40099.0,40098.0,0.13662816]
[1610143600516,0.4685001,40099.0,40098.0,0.13662816]
[1610143600818,0.01414457,40099.0,40098.0,0.13662816]
[1610143602320,0.01414457,40099.0,40098.0,0.16713859]
[1610143607528,0.4691946,40099.0,40098.0,0.16713859]
[1610143609128,0.4691946,40099.0,40098.0,0.13662816]
[1610143609329,1.38114512,40099.0,40098.0,0.13662816]
[1610143609528,1.01529562,40099.0,40098.0,0.13662816]
[1610143610128,1.38114024,40099.0,40098.0,0.13662816]
[1610143611832,2.04871705,40099.0,40098.0,0.13662816]
[1610143613635,1.38114024,40099.0,40098.0,0.13662816]
[1610143614232,0.92609021,40099.0,40098.0,0.13662816]
[1610143615735,0.92609021,40099.0,40098.0,0.00030208]
[1610143616435,1.59343922,40099.0,40098.0,0.00030723]
[1610143616736,2.14232091,40099.0,40091.0,0.00030723]
[1610143617234,2.14232091,40099.0,40090.0,0.2]
[1610143617235,0.56302626,40099.0,40092.0,0.00030723]
[1610143617635,0.66720374,40095.0,40092.0,0.00030723]
[1610143617836,0.66720374,40095.0,40091.0,0.00030723]
[1610143618037,0.66720374,40095.0,40093.0,0.00030723]
[1610143618435,0.66720374,40095.0,40092.0,0.00030725]
[1610143618635,0.66720374,40095.0,40094.0,0.00030725]
[1610143618937,0.54578763,40094.0,40093.0,0.00030725]
[1610143619136,0.68211371,40094.0,40090.0,0.2]
[1610143619436,0.68211371,40094.0,40093.0,0.00030724]
[1610143619736,0.68211371,40094.0,40090.0,0.2]
[1610143619737,0.54564999,40092.0,40091.0,0.00030724]
[1610143619936,0.54564999,40092.0,40090.0,0.2]
[1610143620236,0.54564999,40092.0,40091.0,0.00030723]
[1610143622140,2.9048,40092.0,40091.0,0.00030723]
[1610143622340,4.48286985,40092.0,40091.0,0.00030723]
[1610143622539,3.93741034,40092.0,40091.0,0.00030723]
[1610143622739,5.03166276,40092.0,40091.0,0.00030723]
[1610143623141,4.4863807,40092.0,40091.0,0.00030723]
[1610143623439,5.03154479,40092.0,40091.0,0.00030723]
[1610143624143,5.03154479,40092.0,40091.0,0.00030733]
[1610143624144,2.12674479,40092.0,40091.0,0.00030733]
[1610143624343,2.88387615,40092.0,40091.0,0.00030733]
[1610143624743,1.21180317,40092.0,40091.0,0.00030733]
[1610143624941,1.21180317,40092.0,40091.0,0.00030731]
[1610143628246,1.96806112,40092.0,40091.0,0.00030731]
[1610143628645,2.42171766,40092.0,40091.0,0.00030731]
[1610143629348,2.7877584,40092.0,40091.0,0.00030731]
[1610143629750,2.42171766,40092.0,40091.0,0.00030731]
[1610143630252,2.42171766,40092.0,40090.0,0.2]
[1610143630750,2.41807916,40091.0,40090.0,0.2]
[1610143631150,2.99717916,40091.0,40090.0,0.2]
[1610143631350,2.99717916,40091.0,40090.0,0.20030731]